bitfinex-derivatives/quotes_SOLF0:USTF0_20240827
["timestamp","ask_amount","ask_price","bid_price","bid_amount"]
[1724769525087,3.2222,155.18,155.14,3.223]
[1724769525292,3.2222,155.18,155.12,19.84]
[1724769525584,3.2222,155.18,155.13,3.2232]
[1724769525789,3.28572962,155.21,155.1,19.84]
[1724769525790,3.2224,155.17,155.1,19.84]
[1724769525986,19.84,155.2,155.11,1.2403]
[1724769526192,0.04432394,155.15,155.12,0.04083991]
[1724769527882,0.04432394,155.15,155.12,3.26423991]
[1724769528483,0.04432394,155.15,155.13,3.2232]
[1724769529388,0.04432394,155.15,155.12,0.04083991]
[1724769530595,0.04432394,155.15,155.12,3.26423991]
[1724769530885,0.04432394,155.15,155.12,0.04083991]
[1724769531494,0.04432394,155.15,155.12,19.88083991]
[1724769531990,0.04432394,155.15,155.13,3.2231]
[1724769532894,0.04432394,155.15,155.13,4.471]
[1724769533490,0.04432394,155.15,155.14,3.223]
[1724769534793,3.2219,155.2,155.16,3.2224]
[1724769535697,3.222,155.19,155.15,3.2228]
[1724769535993,19.88811032,155.19,155.15,0.0473837]
[1724769536591,0.04811032,155.19,155.15,0.0473837]
[1724769536899,3.27011032,155.19,155.15,3.2700837]
[1724769537293,0.04811032,155.19,155.15,0.0473837]
[1724769537694,3.2222,155.18,155.15,0.0473837]
[1724769538400,0.04811032,155.19,155.15,0.0473837]
[1724769538996,0.04811032,155.19,155.18,3.2222]
[1724769539190,0.04811032,155.19,155.15,0.0473837]
[1724769539399,0.04811032,155.19,155.16,3.2225]
[1724769539701,0.04811032,155.19,155.15,0.0473837]
[1724769539994,0.04811032,155.19,155.16,3.2224]
[1724769540195,0.04811032,155.19,155.15,0.0473837]
[1724769540589,0.04811032,155.19,155.15,3.2699837]
[1724769540794,3.27021032,155.19,155.15,0.0473837]
[1724769541099,0.04811032,155.19,155.15,0.0473837]
[1724769541298,0.04811032,155.19,155.17,3.2222]
[1724769541899,0.04811032,155.19,155.18,3.2222]
[1724769542798,0.74373176,155.25,155.2,19.84]
[1724769543100,224.0,155.35,155.2,19.84]
[1724769543101,19.84,155.3,155.2,19.84]
[1724769543299,0.74353571,155.29,155.22,19.84]
[1724769543504,25.76,155.32,155.22,19.84]
[1724769543696,3.2202,155.28,155.25,0.04827803]
[1724769544505,3.26299356,155.29,155.25,3.26897803]
[1724769544702,0.04299356,155.29,155.26,19.84]
[1724769545005,0.04299356,155.29,155.28,3.2201]
[1724769545607,0.04299356,155.29,155.27,3.2203]
[1724769546100,0.04299356,155.29,155.26,4.544]
[1724769546700,0.04299356,155.29,155.27,3.2203]
[1724769547999,0.04299356,155.29,155.26,21.1636]
[1724769548198,0.04299356,155.29,155.28,3.2201]
[1724769548406,0.04299356,155.29,155.28,23.0601]
[1724769548907,3.2193,155.33,155.29,3.2197]
[1724769549307,19.84,155.41,155.33,3.219]
[1724769549503,0.74281768,155.4,155.33,3.219]
[1724769549813,0.04357867,155.38,155.35,0.04888376]
[1724769551007,3.2184,155.36,155.35,0.04888376]
[1724769551410,0.04357867,155.38,155.35,0.04888376]
[1724769554620,3.26177867,155.38,155.35,0.04888376]
[1724769555312,0.04357867,155.38,155.35,0.04888376]
[1724769555916,3.26157867,155.38,155.35,0.04888376]
[1724769556516,0.04357867,155.38,155.35,0.04888376]
[1724769557315,0.04357867,155.38,155.35,3.26748376]
[1724769557509,0.04357867,155.38,155.35,0.04888376]
[1724769558114,3.26177867,155.38,155.35,0.04888376]
[1724769558310,0.04357867,155.38,155.35,0.04888376]
[1724769558820,3.2184,155.36,155.35,0.04888376]
[1724769559616,3.9613631,155.36,155.35,0.04888376]
[1724769560112,3.2184,155.36,155.35,0.04888376]
[1724769561123,0.04357867,155.38,155.35,0.04888376]
[1724769561417,0.04357867,155.38,155.35,3.26748376]
[1724769561917,0.04357867,155.38,155.35,23.10748376]
[1724769562219,0.04357867,155.38,155.37,19.84]
[1724769563313,9.2066525,155.47,155.37,19.84]
[1724769563522,19.84,155.49,155.39,19.84]
[1724769563721,3.97181776,155.48,155.39,19.84]
[1724769563923,0.74214807,155.47,155.39,19.84]
[1724769564424,0.04511936,155.45,155.41,0.04350235]
[1724769564729,3.2168,155.44,155.41,0.04350235]
[1724769564924,3.2168,155.44,155.41,19.88350235]
[1724769565221,0.04511936,155.45,155.43,19.84]
[1724769565618,0.04511936,155.45,155.44,3.2168]
[1724769565923,5.92,155.54,155.44,6.45605283]
[1724769566123,3.2157,155.5,155.46,19.84]
[1724769566320,5.92,155.54,155.46,19.84]
[1724769566523,0.74176709,155.53,155.46,19.84]
[1724769566725,3.2154,155.51,155.46,19.84]
[1724769567023,0.02832377,155.5,155.47,0.04615225]
[1724769568023,3.24392377,155.5,155.47,0.04615225]
[1724769568423,0.02832377,155.5,155.47,0.04615225]
[1724769569420,3.24402377,155.5,155.47,0.04615225]
[1724769570626,0.02832377,155.5,155.47,19.88615225]
[1724769571322,0.74169958,155.56,155.49,19.84]
[1724769571521,0.74169958,155.56,155.46,19.84]
[1724769571522,3.2143,155.57,155.52,23.055]
[1724769572034,19.84,155.59,155.5,19.84]
[1724769572220,0.74147933,155.58,155.5,19.84]
[1724769572424,3.2148,155.54,155.52,0.04321606]
[1724769572930,19.84,155.59,155.52,0.04321606]
[1724769573121,3.2147,155.55,155.52,0.04321606]
[1724769574730,3.2149,155.54,155.52,0.04321606]
[1724769575123,19.84,155.57,155.52,0.04321606]
[1724769575428,3.2149,155.53,155.52,0.04321606]
[1724769578938,3.2148,155.54,155.52,0.04321606]
[1724769579540,3.2149,155.53,155.52,0.04321606]
[1724769580236,3.2148,155.54,155.52,0.04321606]
[1724769580436,3.1640346,155.6,155.52,19.88321606]
[1724769580634,0.74151874,155.59,155.52,19.88321606]
[1724769580830,3.2145,155.56,155.52,19.88321606]
[1724769581839,3.2145,155.56,155.52,23.09831606]
[1724769582235,3.2145,155.55,155.52,19.88321606]
[1724769583339,3.2144,155.56,155.53,19.84]
[1724769583635,3.2144,155.56,155.53,19.88077422]
[1724769583836,3.2141,155.57,155.53,23.09567422]
[1724769584041,3.2141,155.57,155.55,19.84]
[1724769584241,9.06251977,155.63,155.55,19.84]
[1724769584439,3.2138,155.59,155.57,0.04344324]
[1724769584830,23.02251977,155.63,155.57,0.04344324]
[1724769585140,0.74114096,155.62,155.57,0.04344324]
[1724769585535,3.91617388,155.62,155.57,0.04344324]
[1724769585742,0.74114096,155.61,155.57,0.04344324]
[1724769586040,3.2139,155.58,155.57,0.04344324]
[1724769589450,19.84,155.59,155.49,1.2827]
[1724769589638,19.84,155.56,155.49,1.2827]
[1724769590137,19.84,155.58,155.49,21.1227]
[1724769590641,0.04344324,155.55,155.52,0.04084995]
[1724769590941,3.2149,155.53,155.52,0.04084995]
[1724769591437,0.04344324,155.55,155.52,0.04084995]
[1724769591839,3.2149,155.54,155.52,0.04084995]
[1724769592741,3.25804324,155.55,155.52,0.04084995]
[1724769593441,3.2148,155.54,155.52,0.04084995]
[1724769593643,0.04344324,155.55,155.52,19.88084995]
[1724769593839,0.04344324,155.55,155.52,23.17098272]
[1724769594041,0.04344324,155.55,155.54,19.84]
[1724769594938,3.2137,155.59,155.54,19.84]
[1724769595141,3.26989161,155.63,155.54,19.84]
[1724769595342,0.74110449,155.62,155.54,19.84]
[1724769595543,3.2139,155.59,155.54,23.0547]
[1724769595743,3.26989161,155.63,155.54,23.0547]
[1724769595942,0.74110672,155.62,155.54,23.0547]
[1724769596146,0.74110672,155.62,155.57,0.04285406]
[1724769596341,3.26989161,155.63,155.58,19.84]
[1724769596743,5.88,155.66,155.58,19.84]
[1724769596947,19.84,155.64,155.6,0.04626036]
[1724769597149,4.0157374,155.63,155.6,0.04626036]
[1724769597449,3.27471493,155.63,155.6,0.04626036]
[1724769598442,3.2134,155.61,155.6,0.04626036]
[1724769601649,47.58621944,155.68,155.6,0.04626036]
[1724769601650,67.42621944,155.68,155.6,0.04626036]
[1724769601846,5.88,155.66,155.6,0.04626036]
[1724769602047,0.74082207,155.65,155.6,0.04626036]
[1724769602356,3.213,155.63,155.6,0.04626036]
[1724769602751,25.74,155.7,155.6,0.04626036]
[1724769602953,19.84,155.68,155.63,0.04261105]
[1724769603155,0.74067863,155.67,155.63,0.04261105]
[1724769603352,3.2127,155.64,155.63,0.04261105]
[1724769604757,19.84,155.64,155.55,2.5194]
[1724769604969,1.3012,155.66,155.55,2.5194]
[1724769605264,19.84,155.63,155.55,5.7337]
[1724769605647,0.04261105,155.61,155.57,0.04575075]
[1724769606756,3.2136,155.6,155.57,0.04575075]
[1724769606958,0.04261105,155.61,155.57,0.04575075]
[1724769607360,3.25601105,155.61,155.57,0.04575075]
[1724769607562,0.04261105,155.61,155.57,0.04575075]
[1724769609854,3.2139,155.58,155.57,0.04575075]
[1724769610052,23.0539,155.58,155.57,0.04575075]
[1724769610655,26.31091463,155.58,155.57,0.04575075]
[1724769611657,3.2139,155.58,155.57,0.04575075]
[1724769612860,3.2143,155.56,155.51,19.84]
[1724769613265,3.2143,155.56,155.52,3.2151]
[1724769613763,3.2143,155.56,155.52,3.25883146]
[1724769613764,3.26357633,155.56,155.52,3.25883146]
[1724769614159,0.04927633,155.56,155.52,0.04373146]
[1724769614771,3.2147,155.55,155.52,0.04373146]
[1724769615269,3.2149,155.53,155.52,0.04373146]
[1724769617268,3.2149,155.53,155.44,2.4889]
[1724769617269,19.84,155.53,155.44,2.4889]
[1724769617567,19.84,155.5,155.44,1.2081]
[1724769617769,19.84,155.48,155.39,19.84]
[1724769618169,0.04440826,155.45,155.42,0.04630126]
[1724769618871,3.2168,155.44,155.42,0.04630126]
[1724769619670,0.04440826,155.45,155.42,0.04630126]
[1724769621577,0.04440826,155.45,155.43,19.84]
[1724769621766,0.04440826,155.45,155.44,19.84]
[1724769622169,5.86,155.52,155.44,19.84]
[1724769622467,5.86,155.54,155.46,19.84]
[1724769622764,3.2155,155.51,155.46,23.0562]
[1724769622970,9.15461355,155.54,155.46,19.84]
[1724769623171,9.15461355,155.54,155.48,0.04334816]
[1724769623374,0.04369435,155.52,155.48,0.04334816]
[1724769623770,19.84,155.49,155.48,0.04334816]
[1724769624674,23.0558,155.49,155.48,0.04334816]
[1724769625880,3.2158,155.49,155.48,0.04334816]
[1724769626378,3.2156,155.5,155.48,0.04334816]
[1724769626675,0.04369435,155.52,155.48,0.04334816]
[1724769626877,0.04369435,155.52,155.49,3.2157]
[1724769627179,0.04369435,155.52,155.48,19.88334816]
[1724769627482,0.04369435,155.52,155.49,3.2156]
[1724769627677,0.04369435,155.52,155.5,19.84]
[1724769627980,0.04369435,155.52,155.5,21.1154]
[1724769628479,0.04369435,155.52,155.5,1.2754]
[1724769629275,0.04369435,155.52,155.5,4.4908]
[1724769630079,0.04369435,155.52,155.51,3.2153]
[1724769631376,0.04369435,155.52,155.5,4.4909]
[1724769632680,3.25889435,155.52,155.5,1.2754]
[1724769633081,0.04369435,155.52,155.5,1.2754]
[1724769633681,0.04369435,155.52,155.5,4.4908]
[1724769633881,0.04369435,155.52,155.5,1.2754]
[1724769634080,0.04369435,155.52,155.51,3.2153]
[1724769634786,24.71,155.59,155.5,1.2754]
[1724769634979,0.74143521,155.58,155.53,24.71]
[1724769635178,7.1724,155.63,155.53,24.71]
[1724769635378,0.74124274,155.62,155.53,24.71]
[1724769635581,0.74124274,155.62,155.55,3.2144]
[1724769635889,0.04163648,155.6,155.57,0.04634353]
[1724769636082,3.2137,155.59,155.57,0.04634353]
[1724769636285,0.04163648,155.6,155.57,0.04634353]
[1724769636784,3.2139,155.58,155.57,0.04634353]
[1724769637188,3.95523974,155.58,155.57,0.04634353]
[1724769637388,3.2139,155.58,155.57,0.04634353]
[1724769637895,3.2137,155.59,155.57,0.04634353]
[1724769638790,3.2139,155.58,155.57,0.04634353]
[1724769641479,28.66523704,155.58,155.57,0.04634353]
[1724769641682,25.45133704,155.58,155.5,1.2754]
[1724769641887,24.71,155.56,155.5,1.2754]
[1724769642083,0.74133704,155.55,155.5,1.2754]
[1724769642483,3.2152,155.52,155.5,1.2754]
[1724769642991,3.26137203,155.53,155.5,1.2754]
[1724769643192,0.04637203,155.53,155.49,0.04580217]
[1724769643582,24.71,155.51,155.49,0.04580217]
[1724769643995,3.2155,155.5,155.49,0.04580217]
[1724769644198,0.04637203,155.53,155.49,0.04580217]
[1724769644384,0.78809662,155.53,155.49,0.04580217]
[1724769644693,3.2154,155.51,155.49,0.04580217]
[1724769646301,3.2155,155.5,155.49,0.04580217]
[1724769648696,27.9255,155.5,155.49,0.04580217]
[1724769648897,27.9255,155.5,155.41,1.2523]
[1724769648898,3.2168,155.44,155.41,1.2523]
[1724769649303,24.71,155.48,155.41,1.2523]
[1724769649503,24.71,155.48,155.41,4.4697]
[1724769650005,3.26002356,155.46,155.43,0.04661613]
[1724769650597,0.04342356,155.46,155.43,0.04661613]
[1724769651293,3.25982356,155.46,155.43,0.04661613]
[1724769651701,0.04342356,155.46,155.43,0.04661613]
[1724769652398,3.25982356,155.46,155.43,0.04661613]
[1724769655101,3.2166,155.45,155.43,0.04661613]
[1724769656309,0.04342356,155.46,155.43,0.04661613]
[1724769656310,3.2168,155.44,155.43,0.04661613]
[1724769658405,3.2178,155.4,155.36,1.2502]
[1724769658604,19.77,155.45,155.36,1.2502]
[1724769658903,19.77,155.43,155.36,1.2502]
[1724769659509,0.04792088,155.41,155.38,0.04412534]
[1724769661007,0.04792088,155.41,155.39,3.2178]
[1724769661312,0.04792088,155.41,155.38,0.04412534]
[1724769661806,5.86,155.48,155.39,19.77]
[1724769662011,5.86,155.48,155.41,19.77]
[1724769662405,3.2165,155.46,155.41,22.9873]
[1724769662710,19.77,155.47,155.42,0.04656625]
[1724769662913,0.04162184,155.45,155.42,0.04656625]
[1724769663212,3.2171,155.43,155.42,0.04656625]
[1724769663707,3.2178,155.39,155.36,1.2502]
[1724769664615,3.2177,155.4,155.36,1.2502]
[1724769664804,0.04486565,155.39,155.36,1.29075037]
[1724769665404,3.26266565,155.39,155.36,1.29075037]
[1724769666607,0.04486565,155.39,155.36,1.29075037]
[1724769667209,3.26266565,155.39,155.36,1.29075037]
[1724769669206,0.04486565,155.39,155.36,1.29075037]
[1724769669408,3.218,155.38,155.36,1.29075037]
[1724769670218,3.2182,155.37,155.36,1.29075037]
[1724769670414,3.2182,155.37,155.36,0.04055037]
[1724769671507,3.2181,155.38,155.36,0.04055037]
[1724769671710,0.04486565,155.39,155.36,0.04055037]
[1724769672011,3.26286565,155.39,155.36,0.04055037]
[1724769673014,3.18892822,155.49,155.36,0.04055037]
[1724769673208,26.35222246,155.48,155.38,19.77]
[1724769673407,0.74222246,155.47,155.39,1.2914]
[1724769674017,0.04872098,155.45,155.42,3.2172]
[1724769674219,0.04872098,155.45,155.41,0.04278777]
[1724769675120,3.2171,155.43,155.41,0.04278777]
[1724769675719,0.04872098,155.45,155.41,0.04278777]
[1724769676521,3.26552098,155.45,155.41,0.04278777]
[1724769677323,3.26552098,155.45,155.41,3.26018777]
[1724769677520,3.2168,155.44,155.41,0.04278777]
[1724769680315,0.04872098,155.45,155.43,3.2168]
[1724769680714,0.04872098,155.45,155.41,0.04278777]
[1724769680923,0.04872098,155.45,155.42,3.2171]
[1724769681129,0.04872098,155.45,155.41,0.04278777]
[1724769681620,3.26542098,155.45,155.41,3.26008777]
[1724769681828,0.04872098,155.45,155.41,0.04278777]
[1724769683324,19.77,155.44,155.41,0.04278777]
[1724769683524,3.2172,155.42,155.41,0.04278777]
[1724769684027,22.9872,155.42,155.41,0.04278777]
[1724769684327,19.77,155.42,155.34,1.2256]
[1724769684525,19.77,155.38,155.29,8.2654]
[1724769684728,3.26984236,155.38,155.29,9.491]
[1724769684925,3.219,155.34,155.29,3.651]
[1724769685327,0.04628809,155.33,155.3,0.04926092]
[1724769685928,0.04628809,155.33,155.31,3.2195]
[1724769686626,0.04628809,155.33,155.3,0.04926092]
[1724769687127,3.26538809,155.33,155.3,0.04926092]
[1724769688123,0.04628809,155.33,155.23,19.77]
[1724769688336,19.77,155.33,155.24,1.2548]
[1724769688524,19.77,155.35,155.26,3.2204]
[1724769688732,19.77,155.35,155.25,21.004]
[1724769689037,19.77,155.35,155.25,22.25]
[1724769689233,3.2195,155.31,155.28,0.04676805]
[1724769689535,0.0407445,155.32,155.28,0.04676805]
[1724769689727,3.2601445,155.32,155.28,3.26686805]
[1724769689926,0.0407445,155.32,155.28,0.04676805]
[1724769690326,3.2195,155.31,155.28,0.04676805]
[1724769690531,0.0407445,155.32,155.28,0.04676805]
[1724769691037,3.2601445,155.32,155.28,3.26686805]
[1724769691227,0.0407445,155.32,155.28,0.04676805]
[1724769691925,3.2197,155.3,155.28,0.04676805]
[1724769693737,3.2199,155.29,155.28,0.04676805]
[1724769695130,3.2199,155.29,155.2,1.2613]
[1724769695131,3.2208,155.25,155.2,1.2613]
[1724769695332,3.1755188,155.3,155.2,2.5615]
[1724769695636,19.77,155.27,155.2,1.3002]
[1724769696133,0.0439732,155.25,155.22,0.04569883]
[1724769696336,3.2211,155.23,155.22,0.04569883]
[1724769696527,0.0439732,155.25,155.22,0.04569883]
[1724769696837,3.2211,155.24,155.22,0.04569883]
[1724769697336,0.0439732,155.25,155.22,0.04569883]
[1724769697737,3.2211,155.23,155.22,0.04569883]
[1724769699135,0.0439732,155.25,155.22,0.04569883]
[1724769700140,0.0439732,155.25,155.23,19.77]
[1724769700532,0.0439732,155.25,155.24,3.2209]
[1724769700932,0.0439732,155.25,155.22,19.81569883]
[1724769701131,0.0439732,155.25,155.23,3.2211]
[1724769702043,0.0439732,155.25,155.24,3.2209]
[1724769702635,22.2313,155.35,155.23,4.43395029]
[1724769702842,19.77,155.32,155.23,24.20395029]
[1724769703231,25.59,155.34,155.23,24.20395029]
[1724769703439,19.77,155.34,155.23,24.20395029]
[1724769703635,0.04786813,155.3,155.27,0.04634549]
[1724769704337,0.04786813,155.3,155.27,3.26654549]
[1724769704938,3.2199,155.29,155.27,0.04634549]
[1724769705142,0.04786813,155.3,155.27,0.04634549]
[1724769705332,19.77,155.28,155.19,1.2794]
[1724769705537,19.77,155.28,155.17,19.77]
[1724769705740,25.59,155.28,155.17,19.77]
[1724769705935,3.221,155.24,155.17,19.77]
[1724769706634,3.221,155.24,155.2,3.2216]
[1724769706635,0.04805084,155.23,155.2,3.2216]
[1724769706832,0.04805084,155.23,155.19,0.04530284]
[1724769707030,0.04805084,155.23,155.19,19.81530284]
[1724769707831,0.04805084,155.23,155.21,3.2214]
[1724769709448,0.04805084,155.23,155.22,3.2213]
[1724769709844,0.04805084,155.23,155.22,22.9913]
[1724769711046,0.04805084,155.23,155.21,22.9915]
[1724769711549,0.04805084,155.23,155.21,19.77]
[1724769711749,0.04805084,155.23,155.22,3.2213]
[1724769714649,0.04805084,155.23,155.21,3.2215]
[1724769716948,0.04805084,155.23,155.19,19.81530284]
[1724769719350,0.04805084,155.23,155.22,3.2213]
[1724769719748,19.77,155.29,155.21,19.77]
[1724769719956,19.77,155.29,155.17,1.2188]
[1724769719957,19.77,155.27,155.17,20.9888]
[1724769720151,19.77,155.25,155.17,20.9888]
[1724769720548,3.2213,155.23,155.17,20.9888]
[1724769720752,0.04111523,155.22,155.19,0.04342169]
[1724769721158,0.04111523,155.22,155.21,3.2216]
[1724769724855,0.04111523,155.22,155.19,0.04342169]
[1724769725463,3.26261523,155.22,155.19,3.26522169]
[1724769726365,3.26261523,155.22,155.2,3.2217]
[1724769726767,0.04111523,155.22,155.19,0.04342169]
[1724769727865,0.04111523,155.22,155.19,19.81342169]
[1724769730871,0.04111523,155.22,155.2,3.2217]
[1724769731073,0.04111523,155.22,155.19,3.26532169]
[1724769731275,0.04111523,155.22,155.19,0.04342169]
[1724769732371,0.04111523,155.22,155.21,3.2216]
[1724769733276,0.04111523,155.22,155.2,3.2217]
[1724769734289,3.26251523,155.22,155.2,3.2217]
[1724769734582,0.04111523,155.22,155.21,3.2216]
[1724769739388,0.04111523,155.22,155.21,22.9916]
[1724769740483,3.2202,155.28,155.21,19.77]
[1724769740688,3.2202,155.28,155.24,19.77]
[1724769740990,3.2202,155.28,155.25,3.2205]
[1724769741184,3.2202,155.28,155.24,19.77]
[1724769741185,3.22,155.29,155.24,19.77]
[1724769741379,2.6085,155.32,155.24,19.77]
[1724769741579,0.04663986,155.28,155.25,0.04107483]
[1724769742390,3.2204,155.27,155.25,0.04107483]
[1724769742989,3.2204,155.27,155.25,3.26177483]
[1724769743187,3.2204,155.27,155.25,0.04107483]
[1724769744588,3.2204,155.27,155.25,3.26177483]
[1724769745592,3.2204,155.27,155.25,0.04107483]
[1724769746584,3.2204,155.27,155.25,3.26177483]
[1724769747692,3.2205,155.26,155.25,0.04107483]
[1724769748492,0.04663986,155.28,155.25,0.04107483]
[1724769748697,0.04663986,155.28,155.25,3.26177483]
[1724769748890,3.26693986,155.28,155.25,3.26177483]
[1724769749090,0.04663986,155.28,155.25,0.04107483]
[1724769749997,3.2205,155.27,155.25,0.04107483]
[1724769753360,3.2205,155.27,155.25,3.26177483]
[1724769753529,3.2205,155.26,155.25,0.04107483]
[1724769754787,0.04663986,155.28,155.25,0.04107483]
[1724769755490,3.2204,155.27,155.25,0.04107483]
[1724769756596,3.2205,155.26,155.25,0.04107483]
[1724769757297,3.2203,155.27,155.25,0.04107483]
[1724769757490,0.04663986,155.28,155.25,0.04107483]
[1724769758593,0.04663986,155.28,155.25,7.95107483]
[1724769758789,0.04663986,155.28,155.27,7.91]
[1724769759198,0.04663986,155.28,155.27,11.1303]
[1724769759404,28.90076999,155.4,155.27,39.55]
[1724769759600,14.43286195,155.38,155.32,7.91]
[1724769759903,13.69,155.38,155.32,7.91]
[1724769760206,72.51339275,155.39,155.3,19.79]
[1724769760395,3.2187,155.35,155.33,0.04421757]
[1724769761994,3.2189,155.34,155.33,0.04421757]
[1724769763903,3.2194,155.32,155.28,3.2199]
[1724769764405,19.79,155.35,155.27,19.79]
[1724769764902,0.04732885,155.33,155.3,3.2197]
[1724769765897,0.04732885,155.33,155.31,3.2194]
[1724769766103,0.04732885,155.33,155.31,19.79]
[1724769767301,0.04732885,155.33,155.32,3.2193]
[1724769767800,49.64696423,155.47,155.32,19.79]
[1724769767801,19.79,155.41,155.32,19.79]
[1724769768004,19.79,155.41,155.35,3.2185]
[1724769768298,25.57,155.45,155.35,19.79]
[1724769768502,3.2175,155.41,155.37,3.2181]
[1724769768743,3.25990988,155.41,155.37,3.25887974]
[1724769769998,3.2176,155.4,155.37,0.04077974]
[1724769770703,3.2179,155.39,155.37,0.04077974]
[1724769771598,0.04240988,155.41,155.37,0.04077974]
[1724769772516,3.2178,155.4,155.37,0.04077974]
[1724769773506,3.2179,155.39,155.37,0.04077974]
[1724769774100,3.218,155.38,155.37,0.04077974]
[1724769774895,19.83240988,155.41,155.37,0.04077974]
[1724769775299,3.2179,155.39,155.37,0.04077974]
[1724769775498,19.83240988,155.41,155.37,0.04077974]
[1724769775708,0.74263875,155.4,155.37,0.04077974]
[1724769776309,3.218,155.38,155.37,0.04077974]
[1724769781816,0.74275104,155.38,155.3,4.4509]
[1724769782121,7.92,155.34,155.29,1.2838]
[1724769782337,5.78,155.4,155.33,7.92]
[1724769782616,8.66279492,155.39,155.33,7.92]
[1724769782914,7.92,155.37,155.35,0.04251904]
[1724769783104,7.92,155.36,155.34,0.04394792]
[1724769783305,3.2188,155.35,155.34,0.04394792]
[1724769783909,11.1388,155.35,155.34,0.04394792]
[1724769784706,3.2195,155.31,155.26,7.92]
[1724769785211,7.92,155.33,155.27,7.92]
[1724769785419,7.92,155.35,155.29,7.92]
[1724769785612,0.04064526,155.34,155.3,11.18446834]
[1724769786809,3.25954526,155.34,155.3,11.18446834]
[1724769787712,3.2191,155.33,155.3,7.96486834]
[1724769788413,3.25954526,155.34,155.3,11.18456834]
[1724769788722,0.04064526,155.34,155.3,7.96486834]
[1724769789515,0.04064526,155.34,155.3,0.04486834]
[1724769790516,3.2192,155.33,155.3,0.04486834]
[1724769790722,0.04064526,155.34,155.3,0.04486834]
[1724769791010,3.2191,155.33,155.3,0.04486834]
[1724769791229,0.04064526,155.34,155.3,0.04486834]
[1724769791412,7.92,155.31,155.3,0.04486834]
[1724769791613,11.1395,155.31,155.3,0.04486834]
[1724769791815,11.15930963,155.31,155.19,5.76]
[1724769792022,7.92,155.26,155.19,7.92]
[1724769792315,7.92,155.24,155.08,6.4484]
[1724769792512,7.92,155.22,155.16,9.1679]
[1724769792714,3.2218,155.2,155.17,0.04081715]
[1724769793118,0.04179904,155.21,155.17,0.04081715]
[1724769794315,3.26339904,155.21,155.17,0.04081715]
[1724769794523,0.04179904,155.21,155.17,0.04081715]
[1724769794824,0.04179904,155.21,155.19,3.2219]
[1724769795218,0.04179904,155.21,155.18,19.81]
[1724769795420,0.04179904,155.21,155.2,3.2218]
[1724769795925,5.76,155.27,155.18,19.81]
[1724769796120,3.2207,155.26,155.21,3.2214]
[1724769796823,0.04796313,155.25,155.22,3.26411917]
[1724769797025,3.26876313,155.25,155.22,0.04281917]
[1724769797621,0.04796313,155.25,155.22,0.04281917]
[1724769798217,5.76,155.33,155.24,19.81]
[1724769798421,5.76,155.33,155.27,19.81]
[1724769798616,3.2194,155.32,155.28,3.2201]
[1724769798822,5.76,155.33,155.27,19.81]
[1724769799215,0.04757757,155.32,155.28,0.04330302]
[1724769799423,0.04757757,155.32,155.29,3.2199]
[1724769804133,3.26687757,155.32,155.28,3.26330302]
[1724769804324,0.04757757,155.32,155.28,0.04330302]
[1724769805326,3.2196,155.31,155.28,0.04330302]
[1724769805731,0.04757757,155.32,155.28,0.04330302]
[1724769805732,0.04757757,155.32,155.29,19.81]
[1724769805926,0.04757757,155.32,155.31,19.81]
[1724769806229,0.04757757,155.32,155.31,23.0295]
[1724769806429,3.2183,155.37,155.31,19.81]
[1724769806696,24.25410297,155.4,155.31,19.81]
[1724769806929,3.2187,155.35,155.31,19.81]
[1724769807128,3.17628049,155.39,155.37,327.0]
[1724769807730,0.04143326,155.4,155.38,19.81]
[1724769808231,0.04143326,155.4,155.39,3.2178]
[1724769808424,0.04143326,155.4,155.36,19.85934582]
[1724769808625,0.04143326,155.4,155.36,0.04934582]
[1724769808828,0.04143326,155.4,155.36,3.26774582]
[1724769810129,0.04143326,155.4,155.36,0.04934582]
[1724769810734,3.2179,155.39,155.36,0.04934582]
[1724769812833,3.2181,155.38,155.36,0.04934582]
[1724769813642,3.2182,155.37,155.36,0.04934582]
[1724769813937,19.81,155.37,155.28,1.3304]
[1724769814127,19.81,155.33,155.24,19.81]
[1724769814335,19.81,155.31,155.22,19.81]